Cogmind - Beta 10.2 --- EXPLORER MODE // 2020.10.31 @ 15:26:35 // Halloween2020/ForbiddenLore Player: 1Q84 Result: Self-destructed Performance ------------- Evolutions (1) 500 Regions Visited (5) 1000 Robots Destroyed (8) 40 Value Destroyed (46) 46 Prototype IDs (1) 20 Alien Tech Used (0) 0 Bonus (-67) -67 TOTAL SCORE: 1539 Bonus ------- Follower Combat Kills 87 Friendly Fire -154 Cogmind --------- Core Integrity 326/400 Matter 148/300 Energy 250/250 System Corruption 0% Temperature Cool (31) Movement Walking (210) Ox3 Location -9/Exiles Parts ------- > --- POWER (1) -------- Ion Engine > --- PROPULSION (3) --- Aluminum Leg Aluminum Leg > --- UTILITY (4) ------ Large Storage Unit Hardened Light Armor Plating Hardened Light Armor Plating > --- WEAPON (2) ------- Rocket Launcher Mini Grenade Launcher > --- INVENTORY (10) --- Terrain Scanner Hardened Light Armor Plating Sensor Drone Bay (20/20) Medium Laser Light Cannon Light Cannon Grenade Launcher Peak State ------------ > --- POWER ------------ Ion Engine > --- PROPULSION ------- Aluminum Leg Aluminum Leg Aluminum Leg > --- UTILITY ---------- Large Storage Unit Hardened Light Armor Plating Hardened Light Armor Plating Sensor Drone Bay > --- WEAPON ----------- Spread Laser Mini Grenade Launcher > --- INVENTORY -------- Terrain Scanner Hardened Light Armor Plating Hardened Light Armor Plating Medium Laser Light Cannon Light Cannon Grenade Launcher Rocket Launcher [Rating: 22] Favorites ----------- Power Ion Engine Engine Ion Engine Propulsion Aluminum Leg Leg Aluminum Leg Utility Hardened Light Armor Plating Device Sensor Drone Bay Storage Medium Storage Unit Protection Hardened Light Armor Plating Weapon Medium Laser Energy Gun Medium Laser Ballistic Gun Assault Rifle Launcher Mini Grenade Launcher Build | -11 -10 -10 -9 -9 -9 ------- Run | Scr Mat Min Mat Min Exi Slots Evolved 3 | . 1 . 2 . . Power . | . . . . . . Propulsion 1 | . . . 1 . . Utility 2 | . 1 . 1 . . Weapon . | . . . . . . Parts Attached 16 | 6 3 . 4 . 3 Power 1 | 1 . . . . . Engine 1 | 1 . . . . . Core . | . . . . . . Reactor . | . . . . . . Propulsion 3 | 2 . . 1 . . Treads . | . . . . . . Leg 3 | 2 . . 1 . . Wheel . | . . . . . . Hover . | . . . . . . Flight . | . . . . . . Utility 7 | 1 2 . 3 . 1 Device 2 | . . . 2 . . Storage 2 | 1 . . 1 . . Processor . | . . . . . . Hackware . | . . . . . . Protection 3 | . 2 . . . 1 Artifact . | . . . . . . Weapon 5 | 2 1 . . . 2 Energy Gun 2 | 1 1 . . . . Energy Cannon . | . . . . . . Ballistic Gun 1 | 1 . . . . . Ballistic Cannon . | . . . . . . Launcher 2 | . . . . . 2 Special Weapon . | . . . . . . Impact Weapon . | . . . . . . Slashing Weapon . | . . . . . . Piercing Weapon . | . . . . . . Special Melee Weapon . | . . . . . . Unidentified Prototypes 1 | . . . 1 . . Parts Lost 3 | . . . . . 3 Power . | . . . . . . Propulsion 1 | . . . . . 1 Utility 1 | . . . . . 1 Weapon 1 | . . . . . 1 Highest Loss Streak 1 | . . . . . 1 Average Slot Usage (%) 91 | . 74 100 93 100 93 Engine 10 | . 12 12 10 10 10 Leg 25 | . 25 25 24 30 27 Device 2 | . . . 8 10 . Storage 10 | . 12 12 10 10 10 Protection 20 | . 6 25 20 20 29 Energy Gun 17 | . 14 25 20 20 5 Launcher 2 | . . . . . 11 Naked Turns . | . . . . . . Heaviest Build 50 | 17 28 28 50 50 41 Greatest Support 30 | 20 20 20 30 30 30 Greatest Overweight (x) 4 | 3 1 1 2 1 4 Average Overweight (x) . | . . 1 1 1 1 Largest Inventory Capacity 10 | 8 8 8 10 10 10 Average Capacity 8 | 7 8 8 8 10 10 Most Carried 9 | 2 8 8 8 8 9 Average Carried 7 | . 5 7 7 8 7 Final Capacity 10 | 8 8 8 10 10 10 Final Carried 8 | 2 8 8 8 8 7 Class Distribution -------------------- 100% | Hacker-Mutant Dominant Class ---------------- Hacker-Mutant | -10/Materials Hacker-Mutant | -10/Mines Hacker-Mutant | -9/Materials Hacker-Mutant | -9/Mines Hacker-Mutant | -9/Exiles Resources | -11 -10 -10 -9 -9 -9 ----------- Run | Scr Mat Min Mat Min Exi Matter Collected 341 | 199 61 . 60 . 21 Remotely . | . . . . . . Salvage Created 81 | . . 49 . . 32 Parts 8 | . . 4 . . 4 Haulers Intercepted . | . . . . . . Recyclers Shooed . | . . . . . . Parts Field Recycled . | . . . . . . Retrieved Matter . | . . . . . . Parts Self-Destructed . | . . . . . . Prevented . | . . . . . . Kills | -11 -10 -10 -9 -9 -9 ------- Run | Scr Mat Min Mat Min Exi Combat Hostiles Destroyed 7 | . . 1 . . 6 Guns 3 | . . 1 . . 2 AOE 4 | . . . . . 4 Classes Destroyed 2 | . . 1 . . 1 Sentry 1 | . . 1 . . . Assembled 6 | . . . . . 6 Best Kill Streak 7 | . . 1 . . 7 Combat Bots Only 6 | . . 1 . . 6 Max Kills in Single Turn 3 | . . 1 . . 3 Gunslinging . | . . . . . . Exploded 3 | . . . . . 3 Melee . | . . . . . . Uniques/NPCs Destroyed 1 | . . . . . 1 EX-HEX (-9/Exiles) Combat | -11 -10 -10 -9 -9 -9 -------- Run | Scr Mat Min Mat Min Exi Damage Taken 704 | . . 20 27 . 657 Core 83 | . . 9 9 . 65 Absorbed by Shields . | . . . . . . Core Remaining (%) 98 | 100 . 96 . . . Volleys Fired 20 | . . 2 . . 18 Largest 2 | . . 2 . . 2 Hottest 115 | . . 115 . . 95 Shots Fired 28 | . . 4 . . 24 Gun 14 | . . 4 . . 10 Cannon . | . . . . . . Launcher 14 | . . . . . 14 Special . | . . . . . . Kinetic . | . . . . . . Thermal 14 | . . 4 . . 10 Explosive 14 | . . . . . 14 Electromagnetic . | . . . . . . Robot Hit Streak 11 | . . 11 . . 7 Robot Miss Streak 3 | . . 1 . . 3 Penetration Max . | . . . . . . Secondary Targets . | . . . . . . Shots Hit Robots 19 | . . 4 . . 15 Core Hits 22 | . . 5 . . 17 Critical Hits . | . . . . . . Critical Kills . | . . . . . . Critical Parts Destroyed . | . . . . . . Melee Attacks . | . . . . . . Impact . | . . . . . . Slashing . | . . . . . . Piercing . | . . . . . . Sneak Attacks . | . . . . . . Combat Hostiles . | . . . . . . Follow-up Attacks . | . . . . . . Damage Inflicted 553 | . . 57 . . 496 Guns 119 | . . 57 . . 62 Cannons . | . . . . . . Explosions 434 | . . . . . 434 Melee . | . . . . . . Ramming . | . . . . . . Kinetic . | . . . . . . Thermal 119 | . . 57 . . 62 Explosive 434 | . . . . . 434 Electromagnetic . | . . . . . . Impact . | . . . . . . Slashing . | . . . . . . Piercing . | . . . . . . Highest Corruption . | . . . . . . Average Corruption . | . . . . . . Corruption Purged . | . . . . . . Overload Shots . | . . . . . . Overflow Damage 46 | . . . . . 46 Projectiles . | . . . . . . Explosions 46 | . . . . . 46 Melee . | . . . . . . Knockbacks . | . . . . . . Impact . | . . . . . . Kinetic . | . . . . . . Secondary . | . . . . . . Self-Inflicted Damage 50 | . . . . . 50 Shots 2 | . . . . . 2 Rammed . | . . . . . . Targets Rammed . | . . . . . . Kicked . | . . . . . . Crushed . | . . . . . . Highest Temperature 598 | . . 177 . . 598 Average Temperature 220 | . . 90 . . 246 Received Heat Transfer 87 | . . 9 18 . 60 Effects 13 | . . . . . 13 Shutdowns 4 | . . . . . 4 Energy Bleed 3 | . . . . . 3 Interference 1 | . . . . . 1 Short Circuit 1 | . . . . . 1 Damage (minor) 1 | . . . . . 1 Damage (major) 3 | . . . . . 3 Siege Activations . | . . . . . . Robots Corrupted . | . . . . . . Combat Hostiles . | . . . . . . Parts Fried . | . . . . . . Impact Corruptions . | . . . . . . Robots Melted . | . . . . . . Combat Hostiles . | . . . . . . Parts Melted . | . . . . . . Heat Transferred 194 | . . 114 . . 80 Parts Sabotaged . | . . . . . . Parts Stolen . | . . . . . . Parts Stripped . | . . . . . . Power Chain Reactions . | . . . . . . Missiles Intercepted . | . . . . . . Alert | -11 -10 -10 -9 -9 -9 ------- Run | Scr Mat Min Mat Min Exi Peak Influence 148 | . 15 61 148 40 . Initial 40 | . . 4 16 40 . Average 37 | . 1 24 92 40 . Maximum Alert Level . | . . . . . . Low Security (%) 100 | 100 100 100 100 100 . Level 1 . | . . . . . . Level 2 . | . . . . . . Level 3 . | . . . . . . Level 4 . | . . . . . . Level 5 . | . . . . . . High Security . | . . . . . . Max Security . | . . . . . . Squads Dispatched . | . . . . . . Investigation . | . . . . . . Extermination . | . . . . . . Reinforcement . | . . . . . . Assault . | . . . . . . Garrison . | . . . . . . Intercept . | . . . . . . Construction Impeded . | . . . . . . Haulers Reinforced . | . . . . . . Stealth | -11 -10 -10 -9 -9 -9 --------- Run | Scr Mat Min Mat Min Exi Distress Signals 2 | . . 1 1 . . Communications Jammed . | . . . . . . Distress Signals . | . . . . . . Times Spotted 15 | . 3 2 2 . 8 Peak Tracking Total 9 | . 1 2 1 . 9 Tactical Retreats . | . . . . . . Traps | -11 -10 -10 -9 -9 -9 ------- Run | Scr Mat Min Mat Min Exi Traps Triggered . | . . . . . . Indirectly . | . . . . . . Trap Hack Attempts . | . . . . . . Triggered . | . . . . . . Disarmed . | . . . . . . Reprogrammed . | . . . . . . Reused . | . . . . . . Traps Extracted . | . . . . . . Installed . | . . . . . . Triggered . | . . . . . . Machines | -11 -10 -10 -9 -9 -9 ---------- Run | Scr Mat Min Mat Min Exi Machines Disabled 4 | . . . . . 4 Max in Single Turn 1 | . . . . . 1 Machines Sabotaged . | . . . . . . Garrisons Compromised . | . . . . . . Overloaded Fab Kills . | . . . . . . Fab Network Shutdowns . | . . . . . . Hacking | -11 -10 -10 -9 -9 -9 --------- Run | Scr Mat Min Mat Min Exi Machines Accessed 4 | . 1 1 2 . . Terminals 2 | . 1 . 1 . . Fabricators . | . . . . . . Repair Stations . | . . . . . . Recycling Units . | . . . . . . Scanalyzers 1 | . . . 1 . . Garrison Access . | . . . . . . Total Hacks 7 | . 1 1 5 . . Successful 6 | . 1 1 4 . . Failed 1 | . . . 1 . . Catastrophic . | . . . . . . Database Lockouts . | . . . . . . Manual 2 | . 1 . . . 1 Terminals 3 | . 1 . 2 . . Fabricators . | . . . . . . Repair Stations . | . . . . . . Recycling Units . | . . . . . . Scanalyzers 3 | . . . 3 . . Garrison Access . | . . . . . . Terminal Hacks 3 | . . 1 2 . . Open Door 1 | . . 1 . . . Hauler Manifests 1 | . . . 1 . . Registered Components 1 | . . . 1 . . Fabricator Hacks . | . . . . . . Repair Station Hacks . | . . . . . . Recycling Unit Hacks . | . . . . . . Scanalyzer 2 | . . . 2 . . Insert Component 1 | . . . 1 . . Analyze 1 | . . . 1 . . Garrison Access Hacks . | . . . . . . Unauthorized Hacks 1 | . 1 . . . . Terminals 1 | . 1 . . . . Botnet 1 | . 1 . . . . Fabricators . | . . . . . . Repair Stations . | . . . . . . Recycling Units . | . . . . . . Scanalyzers . | . . . . . . Garrison Access . | . . . . . . Data Cores Recovered . | . . . . . . Used . | . . . . . . Hacking Detections 1 | . . . 1 . . Full Trace Events . | . . . . . . Feedback Events . | . . . . . . Feedback Blocked . | . . . . . . Robot Schematics Acquired . | . . . . . . Robots Built . | . . . . . . Matter . | . . . . . . Time . | . . . . . . Total Robot Build Rating . | . . . . . . Part Schematics Acquired 1 | . . . 1 . . Parts Built . | . . . . . . Matter . | . . . . . . Time . | . . . . . . Total Part Build Rating . | . . . . . . Parts Repaired . | . . . . . . Time . | . . . . . . Parts Recycled . | . . . . . . Recycled Matter . | . . . . . . Retrieved Matter . | . . . . . . Retrieved Components . | . . . . . . Parts Scanalyzed 1 | . . . 1 . . Part Schematics Acquired 1 | . . . 1 . . Parts Damaged . | . . . . . . Bothacking | -11 -10 -10 -9 -9 -9 ------------ Run | Scr Mat Min Mat Min Exi Used RIF Installer . | . . . . . . Robots Hacked . | . . . . . . Non-combat . | . . . . . . Combat . | . . . . . . Robot Hacks Applied . | . . . . . . Relay Couplers Released . | . . . . . . Robots Rewired . | . . . . . . Allies Hacked . | . . . . . . Hacks Repelled . | . . . . . . Allies | -11 -10 -10 -9 -9 -9 -------- Run | Scr Mat Min Mat Min Exi Total Allies 3 | . . 3 . . . Largest Group 3 | . . 3 3 3 3 Highest-Rated Group 40 | . . 40 40 40 40 Highest-Rated Ally 16 | . . 16 16 16 16 Total Orders 1 | . . . 1 . . RETURN 1 | . . . 1 . . Ally Attacks 27 | . . 3 22 . 2 Total Damage 329 | . . 47 271 . 11 Kills 5 | . . 1 4 . . Allies Corrupted . | . . . . . . Allies Melted . | . . . . . . Intel | -11 -10 -10 -9 -9 -9 ------- Run | Scr Mat Min Mat Min Exi Robot Analysis Total . | . . . . . . Derelict Logs Recovered . | . . . . . . Drone Launches 20 | . . . 20 . . Drone Recoveries 20 | . . . 20 . . Exploration | -11 -10 -10 -9 -9 -9 ------------- Run | Scr Mat Min Mat Min Exi Turns Passed 1231 | 62 237 322 278 104 228 Spaces Moved 769 | 36 177 207 168 67 114 Core 9 | 9 . . . . . Treads . | . . . . . . Legs 760 | 27 177 207 168 67 114 Wheels . | . . . . . . Hover . | . . . . . . Flight . | . . . . . . Fastest Speed 50 | 50 120 150 150 150 150 Average Speed 147 | 130 125 150 161 150 159 Slowest Speed 240 | 200 150 150 180 150 240 Overloaded Moves . | . . . . . . Propulsion Burnouts . | . . . . . . Robots Hopped . | . . . . . . Cave-ins Triggered . | . . . . . . Exploration Rate (%) 30 | 5 38 58 22 20 39 Regions Visited 5 Branch Regions 3 Pre-discovered Areas . | . . . . . . Known Exits Taken 5 | 1 1 1 1 1 . Unknown Exits Taken . | . . . . . . Scrap Searched . | . . . . . . Spaces Dug . | . . . . . . Terrain Destroyed 62 | . . . . . 62 Melee . | . . . . . . Projectile . | . . . . . . AOE 62 | . . . . . 62 Terrain Rammed . | . . . . . . Walls Destroyed . | . . . . . . Machines Disabled . | . . . . . . Actions | -11 -10 -10 -9 -9 -9 --------- Run | Scr Mat Min Mat Min Exi Total 837 | 48 191 217 174 71 136 Wait 18 | 5 3 5 . 5 . Move 764 | 35 176 206 167 66 114 Hop . | . . . . . . Pick Up 12 | 2 7 2 1 . . Fast Attach 10 | 6 3 . 1 . . Attach 4 | . . . 2 . 2 Detach 2 | . . . 1 . 1 Swap 2 | . . . 1 . 1 Drop 5 | . 2 2 1 . . Fire 20 | . . 2 . . 18 Melee . | . . . . . . Ram . | . . . . . . Kick . | . . . . . . Crush . | . . . . . . Escape Stasis . | . . . . . . Rewire . | . . . . . . Trap . | . . . . . . Miscellaneous . | . . . . . . Route ------- -11/Scrapyard -10/Materials -10/Mines -9/Materials (discovered 2 exits: *Min / *Sto) -9/Mines (discovered 2 exits: *Mat / *Exi) -9/Exiles (discovered 1 exit: *Min) History --------- Turn | Location | Event 25 | -11/Scrapyard | Identified exit to Materials 25 | -11/Scrapyard | Discovered exit to Materials (range 16) 63 | -11/Scrapyard | Entered Materials 63 | -10/Materials | Evolved 1 slot: Utility x1 206 | -10/Materials | Identified exit to Mines 206 | -10/Materials | Discovered exit to Mines (range 12) 300 | -10/Materials | Entered Mines 308 | -10/Mines | Assisted by bots powering up and referring to "LRC-V3" 313 | -10/Mines | Build established: Hacker-Mutant 361 | -10/Mines | Received a Rocket Launcher from a helpful Derelict 544 | -10/Mines | Identified exit to Materials 544 | -10/Mines | Discovered exit to Materials (range 15) 570 | -10/Mines | Assembled infested the area 582 | -10/Mines | Found the Drone Emporium 590 | -10/Mines | Found Prototype Device 622 | -10/Mines | Entered Materials 622 | -9/Materials | Accompanied by 3 allies 622 | -9/Materials | Evolved 2 slots: Propulsion x1, Utility x1 655 | -9/Materials | Identified Sensor Drone Bay 769 | -9/Materials | Identified exit to Storage 769 | -9/Materials | Discovered exit to Storage (range 16) 867 | -9/Materials | Identified exit to Mines 867 | -9/Materials | Discovered exit to Mines (range 12) 900 | -9/Materials | Entered Mines 900 | -9/Mines | Accompanied by 3 allies 947 | -9/Mines | Identified exit to Materials 947 | -9/Mines | Discovered exit to Materials (range 6) 992 | -9/Mines | Deemed a non-threat by the Exiles lab entrance 993 | -9/Mines | Identified exit to Exiles 993 | -9/Mines | Discovered exit to Exiles (range 5) 1004 | -9/Mines | Entered Exiles 1004 | -9/Exiles | Accompanied by 3 allies 1027 | -9/Exiles | Identified exit to Mines 1027 | -9/Exiles | Discovered exit to Mines (range 15) 1045 | -9/Exiles | Met 8R-AWN 1069 | -9/Exiles | Met EX-HEX 1074 | -9/Exiles | Attacked by the Exiles 1085 | -9/Exiles | Destroyed EX-HEX 1232 | -9/Exiles | Self-destructed Last Messages --------------- 01176_ Critical hit. 01176_ HV Slug penetrates Wall. 01176_ Penetrated by HV Slug. 01176_ HV Slug penetrates Wall. 01180_ Penetrated by HV Slug. 01180_ Critical hit. 01180_ Aluminum Leg destroyed. 01187_ Penetrated by HV Slug. 01197_ Critical hit. 01197_ HV Slug penetrates Wall. 01201_ Connecting with EX-Vault Access... 01204_ Penetrated by HV Slug. 01213_ Critical hit. 01222_ HV Slug penetrates Wall. 01222_ Penetrated by HV Slug. 01222_ Critical hit. 01222_ Hrd. Light Armor Plating destroyed. 01226_ HV Slug penetrates EX-Vault Access. 01230_ Penetrated by HV Slug. 01231_ The unstable cave ceiling collapses. Map ----- +----------------------------------------------------+ | | | | | | | | | | | | | | | | | | | | | | | | | ?????????????????????????????????????????????????? | | ?????????????????????????????????????????????????? | | ?????????????????????????????????????????????????? | | ?????????????????????????????????????????????????? | | ?????????????????????????????????????????????????? | | ?????????????????????########????????????????????? | | ?????????????????????#X #????????????????????? | | ??????????????????????# #????????????????????? | | ??????????????????????# #????????????????????? | | ??????????????????????# #???#????????????????? | | ??????????????????????# #??"""""?????????????? | | ??????????????????????# ## """?????????????? | | ??????????????????????# X""?????????????? | | ??????????????????????# @ ## """?????????????? | | ???????????????#####?## #??"""""?????????????? | | ???????????????""""""#; #???###??????????????? | | ???????????????"""" ## #????????????????????? | | ??????????????#""X" #????????????????????? | | ??????????????#" #????????????????????? | | ??????????????#" ## #????????????????????? | | ??????????????#""""""?# ?#########??????????? | | ??????????????##"###?? ?#" """""#??????????? | | ??????????????? ????? ##"""""""#??????????? | | ????????????????????? ##" """""#??????????? | | ????????????????????? ## " """"#??????????? | | ???????????????????? """"#??????????? | | ???????????????????? """#??????????? | | ????????????????????? g """#??????????? | | ?????????????????????#" """#??????????? | | ?????????????????????#" """#??????????? | | ?????????????????????#" """##?????????? | | ?????????????????????## """""?????????? | | ??????????????????????# """##?????????? | | ??????????????????????#" "X" """"??????????? | | ??????????????????????#" """ #??????????? | | ??????????????????????#" """""""""#??????????? | | ?????????????????????##" ###########??????????? | | ????????????????????##"" #????????????????????? | +----------------------------------------------------+ Best States ------------- Heat Dissipation 28 Energy Generation 10 Energy Capacity 250 Matter Stores 300 Matter Capacity 300 Sight Range 16 Terrain Scan Density 10 Armor Coverage 450 Resistance: KI 35 Resistance: TH 35 Resistance: EX 35 Resistance: EM 35 Resistance: I 35 Resistance: S 35 Resistance: P 35 Evasion (%) 40 Offensive Hacking 20 Item Schematics ----------------- Hrd. Light Armor Plating | -9/Materials | Scanalyzed Robot Schematics ------------------ None Fabricated ------------ Nothing Alien Tech Used ----------------- None Achievements -------------- None Challenges ------------ None Game ------ Seed ForceMetafiberDevice Manual? 0 Play Time 00:13:03 Cumulative 79.0 hours Start 2020.10.31 @ 15:16:34 End 2020.10.31 @ 15:26:35 Sessions 1 Manual Loads 0 Difficulty Explorer Special Mode Halloween2020/ForbiddenLore Game No. 138 Rogue 0 Adventurer 0 Explorer 138 Win Type - Total 0 Types 0/0/0/0/0/0/0/0/0 Lore% 53 Gallery% 64 Achievement% 48 Wizard Run 0 Options --------- ASCII 0 Keyboard 0 Movement Numpad Keybinds 0 Fullscreen 1 Font 36/Smallcaps Map View 76x50 Tactical HUD 1 Map Filters NONE Filters NONE Steam 1 RUN: cca6e819-97bd-42be-a9da-6a3a9d1454c5